[Event "31st MPL National U18G Chess-ch 2022"]
[Site "Pollachi"]
[Date "2022.04.21"]
[Round "7.4"]
[White "Ishvi Aggarwal"]
[Black "Khairmode Dhanashree"]
[Result "1-0"]
[ECO "D76"]
[WhiteElo "1833"]
[BlackElo "1438"]
[Annotator "NA RC COMBH"]
[PlyCount "59"]
[EventDate "2022.04.18"]
[EventCountry "IND"]
[SourceTitle "playchess.com"]
[Source "ChessBase"]
[SourceQuality "1"]
[TimeControl "5400+30"]

{[%evp 17,59,16,36,27,40,33,49,40,126,32767,117,119,106,53,72,37,98,98,32767,32767,32767,32767,32767,32767,32767,32767,32767,29991,32767,32767,32767,32767,32767,1096,1101,32767,32767,29986,29995,811,29996,29997,29997,29998]} 1. d4 {[%emt 0:00:03]} Nf6 {[%emt 0:00:04]} 2. c4 {[%emt 0:00:02]} g6 {[%emt 0:00:03]} 3. g3 {[%emt 0:00:04]} Bg7 {[%emt 0:00:05]} 4. Bg2 {[%emt 0:00:05]} d5 {[%emt 0:00:05]} 5. cxd5 {[%emt 0:00:05]} Nxd5 {[%emt 0:00:03]} 6. Nf3 {[%emt 0:00:08]} O-O {[%emt 0:00:11]} 7. O-O {[%emt 0:00:04]} Nb6 {[%emt 0:00:57]} 8. Nc3 {[%emt 0:03:21]} Nc6 {[%emt 0:05:12]} 9. d5 {[%emt 0:09:34]} Nb4 {[%emt 0:01:35]} 10. e4 {[%emt 0:01:10]} c6 {[%emt 0:10:41]} 11. Qb3 {[%emt 0:18:46]} Na6 {[%emt 0:02:55] has lost popularity (11...Nd3).} 12. Be3 {[%emt 0:03:59] [#]} c5 $146 {[%emt 0:10:20]} ({Predecessor:} 12... cxd5 $14 13. Nxd5 (13. Rad1 e6 14. exd5 Nxd5 15. Nxd5 exd5 16. Rxd5 Qe7 17. Rb5 b6 18. Nd4 Bb7 19. Bxb7 Qxb7 {0-1 (55) Horvath,C (2495)-Kozul,Z (2595) Osijek 1993}) 13... Nxd5 14. exd5 Nc7) 13. Rfd1 {[%emt 0:06:30]} Bd7 {[%emt 0:09:26]} 14. e5 {[%emt 0:04:02]} Bg4 {[%emt 0:16:14]} 15. Bf4 {[%emt 0:00:43]} ({White should try} 15. a4 $16) 15... Qc8 {[%emt 0:06:17]} 16. Ne4 {[%emt 0:21:34]} h6 {[%emt 0:15:41]} (16... c4 $14 17. Qa3 Bf5) 17. d6 {[%emt 0:08:48]} e6 {[%emt 0:03:23]} 18. Nf6+ {[%emt 0:09:56]} Bxf6 {[%emt 0:00:04]} 19. exf6 {[%emt 0:00:02]} g5 {[%emt 0:01:08]} 20. Bxg5 {[%emt 0:00:30]} hxg5 {[%emt 0:01:48]} 21. Qe3 {[%emt 0:00:42]} Kh7 {[%emt 0:00:55]} 22. Qxg5 {[%emt 0:01:40]} Rg8 {[%emt 0:00:08]} 23. Qh4+ {[%emt 0:00:18]} Kg6 {[%emt 0:00:03]} 24. Qxg4+ {[%emt 0:00:47]} Kxf6 {[%emt 0:00:05]} 25. Qf4+ {[%emt 0:00:15]} Kg7 $18 {[%emt 0:00:12]} 26. Ne5 {[%emt 0:01:33]} f6 {[%emt 0:00:36]} 27. Ng4 {[%emt 0:02:14]} Nd7 {[%emt 0:00:08]} 28. Qh6+ {[%emt 0:00:26]} Kf7 {[%emt 0:00:08]} 29. Qh7+ {[%emt 0:00:11]} Rg7 {[%emt 0:00:09]} 30. Nh6+ {[%emt 0:00:07]} 1-0

[Event "31st MPL National U18G Chess-ch 2022"]
[Site "Pollachi"]
[Date "2022.04.21"]
[Round "7.5"]
[White "Vijayasubhasri S"]
[Black "Priya Mondal"]
[Result "1-0"]
[ECO "B01"]
[WhiteElo "1571"]
[BlackElo "1263"]
[Annotator "NA RC COMBH"]
[PlyCount "87"]
[EventDate "2022.04.18"]
[EventCountry "IND"]
[SourceTitle "playchess.com"]
[Source "ChessBase"]
[SourceQuality "1"]
[TimeControl "5400+30"]

1. e4 {[%emt 0:00:07]} d5 {[%emt 0:00:04]} 2. exd5 {[%emt 0:00:06]} Qxd5 {[%emt 0:00:05]} 3. Nc3 {[%emt 0:00:15]} Qa5 {[%emt 0:00:05]} 4. Bc4 {[%emt 0:00:47]} Nf6 {[%emt 0:03:35]} 5. h3 {[%emt 0:01:02]} c6 {[%emt 0:01:04]} 6. d3 {[%emt 0:03:16]} Bf5 {[%emt 0:06:08]} 7. Bd2 {[%emt 0:03:10]} Qc7 {[%emt 0:01:20]} 8. Qe2 {[%emt 0:07:02]} e6 {[%emt 0:09:57]} 9. Nf3 {[%emt 0:03:34]} Bg6 {[%emt 0:10:36]} 10. Ne5 {[%emt 0:09:19]} Bh5 {[%emt 0:06:55]} 11. g4 {[%emt 0:05:38]} Bd6 {[%emt 0:00:30]} 12. Bf4 {[%emt 0:21:46]} Bg6 {[%emt 0:01:32]} 13. Bg3 {[%emt 0:02:24]} Qe7 {[%emt 0:04:45]} 14. h4 {[%emt 0:09:20]} Bxe5 {[%emt 0:01:47]} 15. Bxe5 {[%emt 0:00:18]} h6 {[%emt 0:03:02]} 16. O-O-O {[%emt 0:06:20]} Nbd7 {[%emt 0:08:47]} 17. Bg3 {[%emt 0:01:30]} O-O-O {[%emt 0:10:24]} 18. Rhe1 {[%emt 0:04:52]} Qc5 {[%emt 0:06:20]} 19. f3 {[%emt 0:04:33]} Nb6 {[%emt 0:04:04]} 20. Bb3 {[%emt 0:01:26]} Rhe8 {[%emt 0:01:36]} 21. Qh2 {[%emt 0:05:29]} Nbd5 {[%emt 0:09:15]} 22. Na4 {[%emt 0:04:57]} Qa5 {[%emt 0:00:58]} 23. Qf2 {[%emt 0:00:45]} b6 {[%emt 0:05:57]} 24. Be5 {[%emt 0:01:47]} Kb7 {[%emt 0:00:36]} 25. Nc3 {[%emt 0:00:26]} Rg8 {[%emt 0:00:52]} 26. Ne4 {[%emt 0:02:02]} Ne8 {[%emt 0:01:11]} 27. Nd2 {[%emt 0:00:19]} Nec7 {[%emt 0:01:43]} 28. Nc4 {[%emt 0:00:30]} Qa6 {[%emt 0:00:08]} 29. Nd6+ {[%emt 0:00:17]} Ka8 {[%emt 0:00:04]} 30. h5 {[%emt 0:00:31]} f6 {[%emt 0:00:43]} 31. hxg6 {[%emt 0:00:25]} fxe5 {[%emt 0:00:03]} 32. Nf7 {[%emt 0:00:08]} Rc8 {[%emt 0:01:16]} 33. Nxe5 {[%emt 0:00:23]} Kb7 {[%emt 0:00:37]} 34. Nf7 {[%emt 0:00:23]} Kb8 {[%emt 0:00:23]} 35. Qg3 {[%emt 0:00:17]} Ka8 {[%emt 0:00:46]} 36. Qd6 {[%emt 0:00:50]} Nb5 {[%emt 0:00:35]} 37. Qe5 {[%emt 0:01:02]} Nbc7 {[%emt 0:00:19]} 38. Kb1 {[%emt 0:00:34]} Nf6 {[%emt 0:00:48]} 39. Nxh6 {[%emt 0:01:00]} Nd7 {[%emt 0:00:17]} 40. Qd6 {[%emt 0:00:13]} gxh6 {[%emt 0:00:28]} 41. Qxd7 {[%emt 0:00:19]} Nd5 {[%emt 0:00:41]} 42. Qxe6 {[%emt 0:01:22]} Nf4 {[%emt 0:00:19]} 43. Qe4 {[%emt 0:00:21]} Rgf8 {[%emt 0:00:48]} 44. g7 {[%emt 0:00:11]} 1-0

[Event "31st MPL National U18G Chess-ch 2022"]
[Site "Pollachi"]
[Date "2022.04.21"]
[Round "7.6"]
[White "Kheerthi Ganta"]
[Black "Aswinika Mani R"]
[Result "0-1"]
[ECO "A60"]
[WhiteElo "2011"]
[BlackElo "1396"]
[Annotator "TA"]
[PlyCount "148"]
[EventDate "2022.04.18"]
[EventCountry "IND"]
[SourceTitle "playchess.com"]
[Source "ChessBase"]
[SourceQuality "1"]
[TimeControl "5400+30"]

{[%evp 12,148,68,60,62,55,61,55,58,54,52,35,43,31,104,116,122,39,39,29,67,67,97,83,109,66,59,62,73,62,64,22,129,55,71,56,61,41,46,19,17,16,15,0,0,0,0,0,0,0,0,-256,-250,-239,-243,-589,-204,-349,-351,-327,-316,-579,-20,-21,-27,-266,-288,-285,-263,-287,0,0,15,0,0,-277,-272,-576,-571,-532,-402,-414,-385,-380,-377,-424,-417,-416,-417,-408,-394,-437,-427,-427,-381,-565,-487,-487,-483,-479,-433,-460,-451,-576,-543,-735,-738,-760,-718,-1068,-252,-236,0,-956,-997,-1050,-1000,-974,-850,-814,-782,-7008,-6956,-5441,-6034,-29994,-8640,-29988,-29987,-29987,-29988,-29989,-29990,-29990,-29991,-29991,-29992,-29992,-29993]} 1. d4 {[%emt 0:00:08]} Nf6 {[%emt 0:00:37]} 2. Nf3 {[%emt 0:01:18]} c5 {[%emt 0:00:27]} 3. d5 {[%emt 0:00:31]} e6 {[%emt 0:00:33]} 4. c4 {[%emt 0:00:33]} exd5 {[%emt 0:00:19]} 5. cxd5 {[%emt 0:00:10]} d6 {[%emt 0:00:26]} 6. Nc3 {[%emt 0:00:52]} Be7 {[%emt 0:00:46]} 7. e4 {[%emt 0:01:01]} Bg4 {[%emt 0:02:05] A60: Modern Benoni: Early Divergences.} 8. Be2 {[%emt 0:00:21]} O-O {[%emt 0:00:30]} 9. Nd2 {[%emt 0:01:27]} Bxe2 {[%emt 0:01:32] White is slightly better.} 10. Qxe2 {[%emt 0:00:10]} Nfd7 {[%emt 0:03:09] [#]} 11. O-O $146 {[%emt 0:02:05]} ({Predecessor:} 11. Nc4 Re8 12. O-O Nb6 13. Ne3 Bf6 14. Nf5 Bxc3 15. bxc3 Qf6 16. Qg4 N8d7 17. h4 {0-1 (31) Cerniauskas,M (1677)-Luksic,E ICCF email 2015}) 11... Bf6 {[%emt 0:03:38]} 12. Nc4 {[%emt 0:03:57]} Bxc3 {[%emt 0:04:32]} (12... Ne5) ({Black should play} 12... Ne5 $14) 13. bxc3 $16 {[%emt 0:00:15]} Nb6 {[%emt 0:02:45]} 14. Nxb6 {[%emt 0:06:18]} (14. Ne3) (14. Ne3 $1 $16) 14... axb6 $14 {[%emt 0:00:32]} 15. c4 {[%emt 0:00:27]} Ra4 {[%emt 0:08:24]} (15... Nd7) 16. Qc2 {[%emt 0:02:15]} Qd7 {[%emt 0:01:54]} (16... Ra6) 17. Rb1 {[%emt 0:01:50]} Rb4 {[%emt 0:07:29]} (17... Ra6) 18. a3 {[%emt 0:03:50]} (18. Bf4) 18... Rxb1 {[%emt 0:06:36]} 19. Qxb1 {[%emt 0:00:07]} Qc7 {[%emt 0:00:37]} 20. Bb2 {[%emt 0:00:28]} f6 {[%emt 0:01:29]} 21. f4 {[%emt 0:01:14][%cal Oe4e5]} Qf7 {[%emt 0:03:55]} (21... b5) (21... b5 $11) 22. Rf3 {[%emt 0:00:42]} (22. e5 $16) 22... Qh5 {[%emt 0:04:07]} 23. Bc3 {[%emt 0:02:53]} Nd7 {[%emt 0:00:27]} 24. a4 {[%emt 0:00:44]} Re8 {[%emt 0:02:28]} 25. a5 {[%emt 0:11:09]} Qg6 {[%emt 0:03:44]} 26. Re3 {[%emt 0:04:51]} (26. axb6 Rxe4 27. f5 Qe8) (26. axb6 Rxe4 27. f5 Qe8 $17) 26... Qg4 {[%emt 0:04:12]} 27. Rf3 {[%emt 0:06:45]} Qg6 $1 {[%emt 0:01:02]} 28. Qb5 {[%emt 0:01:10]} (28. axb6 Qxe4 29. Qb5 Re7 $17) 28... Re7 {[%emt 0:03:09]} 29. Re3 {[%emt 0:02:46]} (29. axb6 Qxe4 30. h3 Nf8 $17) 29... Qg4 {[%emt 0:03:42]} 30. Rf3 {[%emt 0:03:05]} (30. g3 Qd1+ 31. Be1 g5) (30. g3 Qd1+ 31. Be1 g5 $17) 30... Qg6 {[%emt 0:03:23]} 31. axb6 $2 {[%emt 0:02:44][%mdl 8192]} (31. Re3 $11) 31... Qxe4 $19 {[%emt 0:00:44]} 32. h3 {[%emt 0:00:32]} Qc2 {[%emt 0:03:02]} 33. Qa5 $2 {[%emt 0:01:01]} (33. Kh2) 33... Qb1+ $2 {[%emt 0:00:46]} (33... Re2 34. Qa8+ Nf8) (33... Re2 34. Qa8+ Nf8) 34. Kh2 {[%emt 0:00:17]} (34. Rf1 Qb3 35. Qa8+ Nf8 36. Re1 (36. Qd8 Rd7)) (34. Rf1 $142 Qb3 35. Qa8+ Nf8 36. Re1 (36. Qd8 $2 Rd7 $19)) 34... Nxb6 {[%emt 0:02:26]} 35. Rg3 {[%emt 0:00:13]} Kf7 {[%emt 0:01:39]} 36. Qa7 $2 {[%emt 0:00:14]} (36. f5) (36. f5) 36... Nd7 $2 {[%emt 0:03:50]} ({Black should try} 36... Nxc4 $19 {And now ...Ne3 would win.} 37. Qa1 Qxa1 38. Bxa1 b5) 37. Qa8 $11 {[%emt 0:00:18]} Nf8 {[%emt 0:00:59] Strongly threatening ...Qe4.} 38. Qd8 $2 {[%emt 0:00:40]} (38. Qb8 $1 $11 {and White is okay.} Qb6 39. Qc8) 38... Rd7 $19 {[%emt 0:00:40]} 39. Qc8 {[%emt 0:00:13]} Qf5 {[%emt 0:00:52]} 40. Bd2 {[%emt 0:00:10] [#]} g6 $2 {[%emt 0:01:31]} (40... Qc2 $1 $19 {[%cal Rc2d2]} 41. Ra3 (41. Bc3 $2 Qe4 $19) 41... Qxd2) 41. Ra3 $11 {[%emt 0:01:37] Threatening mate with Ra8.} Qe4 {[%emt 0:00:57]} 42. Re3 {[%emt 0:00:50]} Qxf4+ {[%emt 0:00:20]} 43. Kg1 $2 {[%emt 0:00:37][%mdl 8192] [#]} (43. Kh1 $11 {and White has nothing to worry.} Qf1+ 44. Kh2 Qf4+ 45. Kh1 Qf1+ 46. Kh2 Qf4+) 43... Qd4 $1 $19 {[%emt 0:00:55]} ({Stronger than} 43... Qxc4 44. Re8 Kg7 45. Rxf8 Qd4+ 46. Kh2 Qe5+ 47. Kh1 Qa1+ 48. Kh2 Qe5+ 49. Kh1 Qa1+ 50. Kh2 Qe5+ $11) 44. Kh1 $2 {[%emt 0:01:04]} (44. Kh2 Qxd2 45. Re8 Qf4+ 46. Kh1) (44. Qe8+ Kg8 45. Bc3 Qxc4 46. Bxf6) 44... Qxd2 {[%emt 0:01:09]} 45. Re8 {[%emt 0:00:06]} Qh6 {[%emt 0:00:36]} ({Wrong is} 45... Qc1+ $2 46. Kh2 Qf4+ 47. Kh1 $19) 46. Rxf8+ {[%emt 0:00:19]} Qxf8 {[%emt 0:00:09]} 47. Qxd7+ {[%emt 0:00:03][%mdl 4096] Endgame KQ-KQ} Qe7 {[%emt 0:00:07]} 48. Qc8 {[%emt 0:00:06]} f5 {[%emt 0:00:30]} 49. Kg1 {[%emt 0:00:23]} Kf6 {[%emt 0:00:40]} (49... Qe3+ 50. Kh2) ({Not} 49... Qe3+ $2 50. Kf1 $19) 50. Qh8+ {[%emt 0:00:26]} Kg5 {[%emt 0:00:10]} 51. Qc8 {[%emt 0:01:02]} Qe1+ {[%emt 0:00:43]} (51... Qe3+ 52. Kh1 Kf4 53. Kh2) 52. Kh2 {[%emt 0:00:06]} Qe5+ {[%emt 0:00:51]} 53. Kh1 {[%emt 0:00:08]} (53. g3 {was the only defense.} Qe2+ 54. Kg1) 53... Kf4 {[%emt 0:02:57]} 54. Qxb7 {[%emt 0:00:35]} g5 {[%emt 0:02:32]} 55. Qb1 {[%emt 0:01:11]} Qe3 {[%emt 0:00:14] White must now prevent ...Kg3.} 56. Kh2 {[%emt 0:02:15]} Ke5 {[%emt 0:00:20] Threatens to win with ...Qf4+.} 57. Qb2+ {[%emt 0:02:00]} Ke4 {[%emt 0:00:17]} 58. Qf6 {[%emt 0:01:03]} Qf4+ {[%emt 0:00:29]} 59. Kg1 {[%emt 0:00:08]} Kd3 {[%emt 0:00:32]} 60. Qe6 {[%emt 0:01:24]} Qe3+ $2 {[%emt 0:00:14]} (60... Kxc4 61. Qe2+ Kxd5) 61. Kh2 {[%emt 0:00:05]} Qf4+ $2 {[%emt 0:00:44]} (61... Qe4 62. Qxd6 Kxc4 63. Qa6+ Kxd5 64. Qa8+ Ke5 65. Qb8+ Kd4 66. Qb2+ Kd5 67. Qb7+ Kd4 68. Qb2+ Kc4 69. Qa2+ Kb5 70. Qb2+ Kc6 71. Qf6+ Kd5 72. Qd8+ Kc4 73. Qg8+ Kc3 74. Qxg5 c4 75. Qc1+ Qc2) (61... Qe4 62. Qxd6 Kxc4 63. Qa6+ Kxd5 64. Qa8+ Kd6 65. Qb8+ Kc6 66. Qc8+ Kb5 67. Qd7+ Kb4 68. Qd2+ Kb3 69. Qd1+ Kb2 70. Qd2+ Qc2) 62. Kg1 $1 {[%emt 0:00:28]} Kxc4 {[%emt 0:00:17]} 63. Qe2+ {[%emt 0:00:50]} Kxd5 {[%emt 0:00:13] aiming for ...Qd4+.} 64. Qa2+ {[%emt 0:00:04]} Qc4 {[%emt 0:00:16]} 65. Qa8+ {[%emt 0:00:03]} Ke5 {[%emt 0:00:44]} 66. Qh8+ {[%emt 0:00:30]} Kf4 {[%emt 0:00:09]} 67. Kh2 {[%emt 0:00:26]} Ke3 {[%emt 0:00:32] ( -> ...Kf2)} 68. Qe8+ {[%emt 0:00:14]} Qe4 {[%emt 0:00:11]} (68... Kf2 $142 69. Qe3+ Kxe3 70. Kg1 Qc1+ 71. Kh2 Kf2 72. h4 Qg1+ 73. Kh3 Qxg2#) 69. Qb8 {[%emt 0:00:15]} Kf2 {[%emt 0:01:07][%csl Gf2][%cal Re4g2] Black mates.} 70. Qb2+ {[%emt 0:01:36]} Qe2 {[%emt 0:00:25]} 71. Qb3 {[%emt 0:00:37]} Qe5+ {[%emt 0:01:05]} 72. g3 {[%emt 0:00:05]} Qe2 {[%emt 0:00:30]} 73. Qd5 {[%emt 0:00:26]} Kf1+ {[%emt 0:00:23]} 74. Kh1 {[%emt 0:00:05]} Qe4+ {[%emt 0:00:08] Weighted Error Value: White=0.76/Black=0.50} 0-1

[Event "31st MPL National U18G Chess-ch 2022"]
[Site "Pollachi"]
[Date "2022.04.21"]
[Round "7.7"]
[White "Sindhusree K"]
[Black "Shreshtha Surai"]
[Result "1-0"]
[ECO "D59"]
[WhiteElo "1467"]
[BlackElo "1583"]
[Annotator "NA RC COMBH"]
[PlyCount "69"]
[EventDate "2022.04.18"]
[EventCountry "IND"]
[SourceTitle "playchess.com"]
[Source "ChessBase"]
[SourceQuality "1"]
[TimeControl "5400+30"]

1. d4 {[%emt 0:00:22]} Nf6 {[%emt 0:01:49]} 2. c4 {[%emt 0:00:06]} e6 {[%emt 0:00:46]} 3. Nf3 {[%emt 0:00:07]} d5 {[%emt 0:00:35]} 4. Bg5 {[%emt 0:00:11]} Be7 {[%emt 0:00:33]} 5. Nc3 {[%emt 0:00:13]} h6 {[%emt 0:00:50]} 6. Bh4 {[%emt 0:00:06]} O-O {[%emt 0:01:46]} 7. e3 {[%emt 0:00:04]} b6 {[%emt 0:00:09]} 8. cxd5 {[%emt 0:00:05]} Nxd5 {[%emt 0:00:28]} 9. Bxe7 {[%emt 0:00:21]} Qxe7 {[%emt 0:00:25]} 10. Nxd5 {[%emt 0:00:09]} exd5 {[%emt 0:00:17]} 11. Rc1 {[%emt 0:00:06]} Ba6 {[%emt 0:07:59]} 12. Bxa6 {[%emt 0:11:53]} Nxa6 {[%emt 0:00:08]} 13. a3 {[%emt 0:00:08]} Rfd8 {[%emt 1:21:15]} 14. Ne5 {[%emt 1:23:39]} Nb8 {[%emt 0:00:00]} 15. b4 {[%emt 0:00:00]} a5 {[%emt 0:00:00]} 16. O-O {[%emt 0:00:00]} Ra7 {[%emt 0:00:00]} 17. Qb3 {[%emt 0:00:00]} axb4 {[%emt 0:00:00]} 18. axb4 {[%emt 0:00:00]} f6 {[%emt 0:00:00]} 19. Nd3 {[%emt 0:00:00]} Qd6 {[%emt 0:00:00]} 20. e4 {[%emt 0:00:00]} Nc6 {[%emt 0:00:00]} 21. e5 {[%emt 0:00:00]} fxe5 {[%emt 0:00:00]} 22. Rxc6 {[%emt 0:00:00]} Qxc6 {[%emt 0:00:00]} 23. Nxe5 {[%emt 0:00:00]} Qe6 {[%emt 0:00:00]} 24. f4 {[%emt 0:00:00]} Rda8 {[%emt 0:00:00]} 25. f5 {[%emt 0:00:00]} Qd6 {[%emt 0:00:00]} 26. f6 {[%emt 0:00:00]} Ra1 {[%emt 0:00:00]} 27. f7+ {[%emt 0:00:00]} Kf8 {[%emt 0:00:00]} 28. Qf3 {[%emt 0:01:17]} Rxf1+ {[%emt 0:00:00]} 29. Qxf1 {[%emt 0:00:14]} g6 {[%emt 0:00:00]} 30. h4 {[%emt 0:02:20]} h5 {[%emt 0:00:00]} 31. g4 {[%emt 0:02:27]} hxg4 {[%emt 0:01:26]} 32. h5 {[%emt 0:00:07]} gxh5 {[%emt 0:00:07]} 33. Qf5 {[%emt 0:00:47]} Rd8 {[%emt 0:00:29]} 34. Qh7 {[%emt 0:00:50]} Ke7 {[%emt 0:01:26]} 35. f8=Q+ {[%emt 0:00:12]} 1-0

[Event "31st MPL National U18G Chess-ch 2022"]
[Site "Pollachi"]
[Date "2022.04.21"]
[Round "8.1"]
[White "Bhagyashree Patil"]
[Black "Ishvi Aggarwal"]
[Result "1-0"]
[ECO "C54"]
[WhiteElo "1974"]
[BlackElo "1833"]
[Annotator "TA"]
[PlyCount "61"]
[EventDate "2022.04.18"]
[EventCountry "IND"]
[SourceTitle "playchess.com"]
[Source "ChessBase"]
[SourceQuality "1"]
[TimeControl "5400+30"]

{[%evp 13,61,38,35,24,43,41,52,47,53,23,41,19,30,41,43,20,24,31,38,-11,-5,-6,26,0,18,0,0,0,3,3,12,13,33,36,97,102,152,141,138,72,145,131,139,137,29945,29943,5614,5497,29984,1104]} 1. e4 {[%emt 0:00:08]} e5 {[%emt 0:00:04]} 2. Nf3 {[%emt 0:00:03]} Nc6 {[%emt 0:00:04]} 3. Bc4 {[%emt 0:00:02]} Bc5 {[%emt 0:00:04]} 4. c3 {[%emt 0:00:03]} Nf6 {[%emt 0:00:04]} 5. d3 {[%emt 0:00:06]} O-O {[%emt 0:00:06]} 6. O-O {[%emt 0:01:42]} d5 {[%emt 0:00:04]} 7. exd5 {[%emt 0:00:40]} Nxd5 {[%emt 0:00:02]} 8. Nbd2 {[%emt 0:02:07] C54: Giuoco Piano: 4 c3 Nf6, main lines with 5 d4 and 5 d3.} Bg4 {[%emt 0:02:17]} 9. Ne4 {[%emt 0:02:54]} Be7 {[%emt 0:00:11]} 10. h3 {[%emt 0:01:28] White is slightly better.} Bh5 {[%emt 0:00:26]} 11. Re1 {[%emt 0:04:53]} Nb6 {[%emt 0:06:15]} 12. Bb3 {[%emt 0:04:50]} Bg6 {[%emt 0:05:12]} 13. Be3 {[%emt 0:03:34]} Qd7 {[%emt 0:07:53]} 14. Qe2 {[%emt 0:08:50] [#]} Rad8 $146 {[%emt 0:02:23]} ({Predecessor:} 14... Rfe8 15. Rad1 Rad8 16. Nh2 Qc8 17. f3 Kh8 18. Nf1 f5 19. Nf2 Bf6 20. Bc1 Re7 {0-1 (80) Yang,J (1512)-Mikheeva,G (1952) Weifang 2019}) 15. Rad1 {[%emt 0:00:24]} Nd5 {[%emt 0:04:10]} 16. Nc5 {[%emt 0:08:27]} (16. Ba4 $14 {deserves consideration.}) 16... Qc8 $11 {[%emt 0:05:28]} (16... Bxc5 {is more complex.} 17. Bxc5 Rfe8 18. Bxd5 Qxd5 19. d4 Qxa2 20. Qb5 Bc2) 17. d4 {[%emt 0:09:32]} exd4 {[%emt 0:05:29]} (17... b6 {keeps more tension.} 18. Ba4 Nb8 19. Nb3 Nxe3 20. Qxe3 e4) 18. Bxd4 {[%emt 0:04:01]} (18. Nxd4 {looks sharper.} Ne5 19. Bg5 Bxg5 20. Qxe5 Bf6 21. Qg3) 18... Nxd4 {[%emt 0:01:06]} 19. Rxd4 {[%emt 0:10:37]} Bxc5 {[%emt 0:02:21] This bishop pair is nice.} 20. Rxd5 {[%emt 0:00:17]} Rxd5 {[%emt 0:01:35]} 21. Bxd5 {[%emt 0:00:02]} c6 {[%emt 0:01:08]} 22. Bb3 {[%emt 0:03:42]} Qd8 {[%emt 0:01:50]} 23. Ne5 {[%emt 0:03:08]} Qc7 {[%emt 0:04:07]} (23... a5 $14) 24. h4 $16 {[%emt 0:10:40]} ({Much worse is} 24. Nxg6 hxg6 25. Qf3 Qd6 $11) 24... Bd6 {[%emt 0:19:22]} (24... a5 $142) 25. Nxg6 {[%emt 0:03:25] &Bianco is much more active.} hxg6 {[%emt 0:00:07]} 26. Qg4 {[%emt 0:00:19]} (26. h5 $142 {Hoping for hxg6.} Bh2+ 27. Kh1 gxh5 28. Qxh5) 26... Qb6 {[%emt 0:31:42]} ({Black should play} 26... Bc5) 27. Re3 {[%emt 0:01:50]} Qb5 {[%emt 0:00:00]} 28. Qd7 {[%emt 0:02:34]} Bb8 {[%emt 0:00:00][%mdl 8192]} (28... Be5 $16 29. Re1 a6) 29. Re8 {[%emt 0:02:59]} Kh7 {[%emt 0:00:00]} 30. Rxf8 {[%emt 0:01:06]} Qe5 {[%emt 0:00:00] [#]} 31. Rxb8 $1 {[%emt 0:00:27] Weighted Error Value: White=0.10 (very precise) /Black=0.66} 1-0

[Event "31st MPL National U18G Chess-ch 2022"]
[Site "Pollachi"]
[Date "2022.04.21"]
[Round "8.2"]
[White "Keerti Shree Reddy"]
[Black "Chinnam Vyshnavi"]
[Result "0-1"]
[ECO "C00"]
[WhiteElo "1721"]
[BlackElo "1721"]
[Annotator "NA RC COMBH"]
[PlyCount "96"]
[EventDate "2022.04.18"]
[EventCountry "IND"]
[SourceTitle "playchess.com"]
[Source "ChessBase"]
[SourceQuality "1"]
[TimeControl "5400+30"]

1. e4 {[%emt 0:00:30]} e6 {[%emt 0:00:06]} 2. Qe2 {[%emt 0:01:17]} Ne7 {[%emt 0:02:19]} 3. g3 {[%emt 0:01:14]} g6 {[%emt 0:00:19]} 4. Bg2 {[%emt 0:00:07]} Bg7 {[%emt 0:00:06]} 5. Nf3 {[%emt 0:00:17]} O-O {[%emt 0:00:09]} 6. O-O {[%emt 0:00:06]} b6 {[%emt 0:01:03]} 7. Rd1 {[%emt 0:05:07]} d5 {[%emt 0:02:44]} 8. c3 {[%emt 0:03:00]} Ba6 {[%emt 0:08:27]} 9. d3 {[%emt 0:01:23]} c5 {[%emt 0:02:11]} 10. a3 {[%emt 0:07:03]} Nbc6 {[%emt 0:06:03]} 11. Nbd2 {[%emt 0:13:23]} d4 {[%emt 0:03:17]} 12. cxd4 {[%emt 0:02:10]} cxd4 {[%emt 0:01:04]} 13. b4 {[%emt 0:08:51]} b5 {[%emt 0:02:14]} 14. Nb3 {[%emt 0:01:43]} e5 {[%emt 0:00:27]} 15. Nh4 {[%emt 0:04:26]} Bf6 {[%emt 0:04:08]} 16. Bh6 {[%emt 0:15:26]} Re8 {[%emt 0:00:01]} 17. Rac1 {[%emt 0:00:31]} Bc8 {[%emt 0:02:27]} 18. f4 {[%emt 0:09:52]} Rb8 {[%emt 0:07:50]} 19. Nf3 {[%emt 0:02:11]} Bg4 {[%emt 0:06:43]} 20. h3 {[%emt 0:02:59]} Bxf3 {[%emt 0:00:09]} 21. Qxf3 {[%emt 0:00:20]} Rb6 {[%emt 0:01:19]} 22. Rf1 {[%emt 0:04:47]} Kh8 {[%emt 0:04:53]} 23. h4 {[%emt 0:05:58]} Ng8 {[%emt 0:03:46]} 24. Bg5 {[%emt 0:00:01]} h6 {[%emt 0:00:51]} 25. Bxf6+ {[%emt 0:00:33]} Nxf6 {[%emt 0:01:47]} 26. g4 {[%emt 0:02:28]} Kg7 {[%emt 0:03:26]} 27. Rc5 {[%emt 0:06:21]} Qe7 {[%emt 0:01:00]} 28. Na5 {[%emt 0:00:44]} Nxa5 {[%emt 0:02:30]} 29. Rxe5 {[%emt 0:00:02]} Re6 {[%emt 0:00:14]} 30. Rxe6 {[%emt 0:00:44]} Qxe6 {[%emt 0:00:07]} 31. f5 {[%emt 0:00:21]} Qe5 {[%emt 0:02:00]} 32. bxa5 {[%emt 0:01:34]} g5 {[%emt 0:00:17]} 33. hxg5 {[%emt 0:00:44]} hxg5 {[%emt 0:00:05]} 34. Kf2 {[%emt 0:00:30]} Rc8 {[%emt 0:00:44]} 35. Re1 {[%emt 0:00:24]} Rc2+ {[%emt 0:01:00]} 36. Re2 {[%emt 0:00:01]} Rxe2+ {[%emt 0:00:57]} 37. Kxe2 {[%emt 0:00:17]} Qc5 {[%emt 0:00:31]} 38. Kf2 {[%emt 0:01:22]} Nd7 {[%emt 0:00:59]} 39. f6+ {[%emt 0:00:30]} Nxf6 {[%emt 0:00:29]} 40. Qf5 {[%emt 0:00:39]} Qxf5+ {[%emt 0:03:21]} 41. gxf5 {[%emt 0:00:15]} Ng4+ {[%emt 0:00:16]} 42. Ke2 {[%emt 0:00:24]} Ne3 {[%emt 0:00:48]} 43. Bh1 {[%emt 0:00:43]} Kf6 {[%emt 0:00:43]} 44. Kf2 {[%emt 0:00:02]} g4 {[%emt 0:02:14]} 45. Bg2 {[%emt 0:00:49]} Kg5 {[%emt 0:02:55]} 46. Kg3 {[%emt 0:00:01]} f6 {[%emt 0:00:58]} 47. a6 {[%emt 0:00:17]} Nc2 {[%emt 0:02:11]} 48. e5 {[%emt 0:00:59]} fxe5 {[%emt 0:22:22]} 0-1